bitfinex/quotes_BTCUSD_20211001
["timestamp","ask_amount","ask_price","bid_price","bid_amount"]
[1633087788738,0.0027,47391.0,47389.0,9.36540094]
[1633087788940,0.0006,47397.0,47396.0,1.1]
[1633087789243,0.0002,47398.0,47397.0,1.55126307]
[1633087789444,0.09183742,47398.0,47397.0,0.04940254]
[1633087789640,0.09183742,47398.0,47397.0,1.53652624]
[1633087789641,0.09193387,47398.0,47397.0,1.53652624]
[1633087789840,6.64607895,47399.0,47398.0,0.33]
[1633087790041,6.64607895,47399.0,47398.0,2.32067064]
[1633087790042,6.55497895,47399.0,47398.0,2.32067064]
[1633087790239,5.09054895,47399.0,47394.0,1.044403]
[1633087790443,1.74205004,47398.0,47396.0,0.21082288]
[1633087790642,0.16493282,47390.0,47389.0,8.12723011]
[1633087790840,0.770309,47390.0,47389.0,8.12423011]
[1633087791049,0.770309,47390.0,47389.0,8.12431451]
[1633087791050,0.89499607,47390.0,47389.0,8.12431451]
[1633087791239,0.8253,47390.0,47389.0,8.12431451]
[1633087791444,1.91597806,47390.0,47389.0,1.73576299]
[1633087791642,1.68732616,47390.0,47389.0,0.87067596]
[1633087791839,1.68732616,47390.0,47385.0,0.05]
[1633087791840,1.52,47388.0,47387.0,0.03]
[1633087792044,1.15125878,47388.0,47387.0,0.03]
[1633087792440,1.25334765,47388.0,47387.0,0.03]
[1633087792841,1.55,47387.0,47383.0,0.03]
[1633087793040,0.00129453,47384.0,47383.0,0.03]
[1633087793240,1.55251568,47384.0,47383.0,0.03]
[1633087793441,1.55251568,47384.0,47383.0,0.04807236]
[1633087793640,0.00251568,47384.0,47383.0,0.04807236]
[1633087793843,0.032,47387.0,47383.0,0.04807236]
[1633087794043,0.2232,47385.0,47383.0,0.04807236]
[1633087794242,0.032,47387.0,47383.0,0.04807236]
[1633087794243,0.032,47387.0,47384.0,0.14493685]
[1633087794441,0.032,47387.0,47386.0,0.195]
[1633087794645,0.23960427,47387.0,47386.0,0.195]
[1633087794841,0.20760427,47387.0,47386.0,0.225]
[1633087795240,0.29812795,47387.0,47386.0,0.225]
[1633087795442,0.09252368,47387.0,47386.0,0.06]
[1633087796842,0.58755651,47387.0,47386.0,0.03]
[1633087797246,1.18878883,47387.0,47386.0,0.03]
[1633087797442,0.61578883,47387.0,47386.0,0.056]
[1633087797644,0.39258883,47387.0,47386.0,0.056]
[1633087798243,0.118756,47387.0,47386.0,0.056]
[1633087798644,0.118756,47387.0,47386.0,0.03]
[1633087798842,0.091756,47387.0,47386.0,0.03]
[1633087799243,0.691756,47387.0,47386.0,0.03]
[1633087799446,0.721756,47387.0,47386.0,0.054]
[1633087799848,0.121756,47387.0,47386.0,0.054]
[1633087800047,0.49007273,47387.0,47386.0,0.054]
[1633087800244,0.121756,47387.0,47386.0,0.054]
[1633087800446,0.03,47387.0,47386.0,0.054]
[1633087800649,0.03,47387.0,47386.0,0.03]
[1633087800846,1.42448224,47387.0,47386.0,0.03]
[1633087801246,0.31564339,47387.0,47386.0,0.03]
[1633087801449,0.42537108,47387.0,47386.0,0.044]
[1633087801648,0.20217108,47387.0,47386.0,0.044]
[1633087801847,0.80088884,47387.0,47386.0,0.044]
[1633087802047,1.02408884,47387.0,47386.0,0.044]
[1633087802247,1.02529561,47387.0,47386.0,0.044]
[1633087802449,0.80209561,47387.0,47386.0,0.044]
[1633087802646,0.20209561,47387.0,47386.0,0.044]
[1633087803050,0.16909561,47387.0,47386.0,0.03]
[1633087803248,0.69229561,47387.0,47386.0,0.03]
[1633087803449,0.69229561,47387.0,47386.0,0.055]
[1633087803849,0.69229561,47387.0,47386.0,0.03]
[1633087805055,1.14229561,47387.0,47386.0,0.03]
[1633087805253,1.143503,47387.0,47386.0,0.03]
[1633087805452,1.143503,47387.0,47386.0,0.026]
[1633087805453,1.86562,47387.0,47386.0,0.026]
[1633087805652,1.57195168,47387.0,47386.0,0.026]
[1633087806051,0.026,47386.0,47383.0,2.6972603]
[1633087806254,0.026,47386.0,47377.0,0.09418457]
[1633087806255,0.00127246,47379.0,47377.0,0.09418457]
[1633087806454,0.00127246,47379.0,47367.0,0.04194936]
[1633087806455,0.195,47376.0,47367.0,0.04194936]
[1633087806652,1.39299125,47368.0,47367.0,0.01194936]
[1633087806852,1.39299125,47368.0,47358.0,0.2997]
[1633087806853,0.65,47367.0,47358.0,0.2997]
[1633087807053,0.00128924,47360.0,47358.0,0.2997]
[1633087807251,0.86793068,47360.0,47358.0,0.2997]
[1633087807451,0.71267818,47359.0,47358.0,0.1923]
[1633087807660,0.71267818,47359.0,47358.0,0.1823]
[1633087807852,0.442776,47359.0,47358.0,0.18261372]
[1633087808049,0.892776,47359.0,47358.0,0.18261372]
[1633087808254,0.18998277,47352.0,47347.0,0.22478662]
[1633087808557,0.22448867,47359.0,47351.0,8.448e-05]
[1633087808558,0.00128867,47359.0,47351.0,8.448e-05]
[1633087808955,0.00123278,47352.0,47351.0,8.448e-05]
[1633087809154,0.00123278,47352.0,47351.0,0.65008448]
[1633087809353,0.00123278,47352.0,47351.0,0.03008448]
[1633087809554,0.00180454,47352.0,47351.0,0.25008448]
[1633087809956,0.22500454,47352.0,47351.0,0.25008448]
[1633087810161,0.00180454,47352.0,47351.0,0.25008448]
[1633087810554,0.00180454,47352.0,47351.0,0.05508448]
[1633087810754,0.00180454,47352.0,47351.0,0.03008448]
[1633087811555,0.02457176,47352.0,47351.0,0.05408448]
[1633087811954,0.02583701,47352.0,47351.0,0.05408448]
[1633087812154,0.02457176,47352.0,47351.0,0.05408448]
[1633087812557,0.34591493,47352.0,47351.0,0.05408448]
[1633087812763,0.8,47351.0,47345.0,0.09508448]
[1633087812958,0.17806119,47346.0,47345.0,0.09508448]
[1633087813165,0.60816005,47346.0,47345.0,0.09508448]
[1633087813358,1.14460005,47346.0,47345.0,0.09515689]
[1633087813557,1.14960768,47346.0,47345.0,0.00407241]
[1633087813757,1.37449113,47346.0,47345.0,0.00407241]
[1633087813957,1.36780005,47346.0,47345.0,0.00407241]
[1633087814158,1.37360949,47346.0,47345.0,0.00407241]
[1633087814758,1.37418125,47346.0,47345.0,7.241e-05]
[1633087815362,1.15460525,47346.0,47345.0,7.241e-05]
[1633087815558,1.40718125,47346.0,47345.0,7.241e-05]
[1633087815958,1.18760525,47346.0,47345.0,7.241e-05]
[1633087816758,1.37418125,47346.0,47345.0,7.241e-05]
[1633087816959,1.77418125,47346.0,47345.0,7.241e-05]
[1633087817160,1.37418125,47346.0,47345.0,7.241e-05]
[1633087817561,1.40928125,47346.0,47345.0,7.241e-05]
[1633087818360,1.18608125,47346.0,47345.0,7.241e-05]
[1633087818563,0.61292199,47346.0,47345.0,7.241e-05]
[1633087818962,0.79949799,47346.0,47345.0,7.241e-05]
[1633087819564,5.759e-05,47344.0,47342.0,0.0004]
[1633087819767,0.65,47342.0,47338.0,0.0001]
[1633087819967,0.65,47342.0,47333.0,0.0008]
[1633087819968,0.0012763,47336.0,47333.0,0.0008]
[1633087820166,0.3,47335.0,47333.0,0.0001]
[1633087820364,0.97227664,47334.0,47333.0,0.0001]
[1633087820675,0.86206728,47334.0,47333.0,0.00024487]
[1633087820864,0.10227828,47334.0,47333.0,0.00024487]
[1633087821527,0.00120395,47334.0,47333.0,0.00024487]
[1633087821663,0.13754868,47334.0,47333.0,0.00024487]
[1633087822064,0.52663647,47334.0,47333.0,0.00024487]
[1633087822266,0.45447368,47334.0,47333.0,0.00024487]
[1633087822865,0.13754868,47334.0,47333.0,0.00024487]
[1633087823466,0.10054868,47334.0,47333.0,0.00024487]
[1633087823668,0.13954868,47334.0,47333.0,0.00024487]
[1633087824065,0.36274868,47334.0,47333.0,0.00024487]
[1633087824263,0.43611598,47334.0,47333.0,0.00024487]
[1633087824466,0.13954868,47334.0,47333.0,0.00024487]
[1633087824866,1.10912468,47334.0,47333.0,0.00024487]
[1633087825266,1.33232468,47334.0,47333.0,0.00024487]
[1633087825469,1.59389644,47334.0,47333.0,0.00024487]
[1633087825667,1.62689644,47334.0,47333.0,0.00024487]
[1633087825869,1.8965554,47334.0,47333.0,0.00024487]
[1633087826069,1.99360361,47334.0,47333.0,0.00024487]
[1633087826265,2.11915116,47334.0,47333.0,0.00024487]
[1633087826466,0.94654516,47334.0,47333.0,0.00024487]
[1633087826666,0.65173037,47334.0,47333.0,0.00024487]
[1633087826866,0.61873037,47334.0,47333.0,0.00706508]
[1633087827266,1.04132837,47334.0,47333.0,0.01742216]
[1633087827466,0.96419792,47334.0,47333.0,0.01742216]
[1633087827668,0.99719792,47334.0,47333.0,0.01742216]
[1633087827868,0.99849137,47334.0,47331.0,0.0008]
[1633087828071,0.75,47332.0,47331.0,0.0008]
[1633087828267,0.98945244,47332.0,47331.0,0.0008]
[1633087828472,0.2406791,47332.0,47331.0,0.0008]
[1633087828868,0.569576,47331.0,47326.0,0.0004]
[1633087829069,1.02080572,47329.0,47326.0,0.0004]
[1633087829266,1.02080572,47329.0,47328.0,0.0004]
[1633087829267,0.64538848,47329.0,47328.0,0.0004]
[1633087829467,1.08739586,47329.0,47328.0,0.00046037]
[1633087829668,1.11939586,47329.0,47328.0,0.00046037]
[1633087830268,0.89619586,47329.0,47328.0,0.00046037]
[1633087830537,0.59659586,47329.0,47328.0,0.00046037]
[1633087830670,0.82036762,47329.0,47328.0,0.00046037]
[1633087831074,1.08836762,47329.0,47328.0,0.00046037]
[1633087831272,0.7,47327.0,47325.0,0.0008]
[1633087831470,0.32161233,47328.0,47325.0,0.0008]
[1633087831471,0.22080685,47326.0,47325.0,0.0008]
[1633087831871,0.44400685,47326.0,47325.0,0.0008]
[1633087832069,0.44408559,47326.0,47325.0,0.0008]
[1633087832270,0.44408559,47326.0,47325.0,0.00525087]
[1633087832471,1.56508559,47326.0,47325.0,0.01556022]
[1633087832872,1.56508559,47326.0,47325.0,0.02384588]
[1633087833070,1.76508559,47326.0,47325.0,0.00834588]
[1633087833270,1.25968637,47326.0,47324.0,0.0008]
[1633087833539,0.00128634,47325.0,47324.0,0.0008]
[1633087833677,0.22086234,47325.0,47324.0,0.0008]
[1633087834774,0.317018,47327.0,47326.0,0.0004]
[1633087834775,0.29156321,47327.0,47326.0,0.0004]
[1633087834974,0.29156321,47327.0,47324.0,0.0012]
[1633087834975,0.007009,47326.0,47324.0,0.0012]
[1633087835175,0.22081363,47325.0,47324.0,0.00244018]
[1633087835573,0.041009,47326.0,47324.0,0.00244018]
[1633087835971,0.0018079,47325.0,47324.0,0.00244018]
[1633087836372,0.0018079,47325.0,47324.0,0.3012266]
[1633087836573,0.0018079,47325.0,47324.0,0.0012266]
[1633087836771,0.2213899,47325.0,47324.0,0.0012266]
[1633087837573,0.2213899,47325.0,47323.0,0.20995718]
[1633087837774,0.22584086,47325.0,47323.0,0.20995718]
[1633087837974,0.00625886,47325.0,47324.0,0.00737838]
[1633087838574,0.32327786,47325.0,47324.0,0.00737838]
[1633087838779,0.54285986,47325.0,47324.0,0.00737838]
[1633087839377,0.53911291,47325.0,47324.0,0.00737838]
[1633087839575,0.57311291,47325.0,47324.0,0.00737838]
[1633087840376,0.54774591,47325.0,47324.0,0.00737838]
[1633087840977,0.89774591,47325.0,47324.0,0.00237838]
[1633087841176,0.51374591,47325.0,47324.0,0.00237838]
[1633087841380,0.75,47324.0,47323.0,0.00742853]
[1633087841576,0.22084214,47324.0,47323.0,0.00742853]
[1633087841775,0.22084214,47324.0,47323.0,0.00748891]
[1633087841975,0.2179816,47324.0,47323.0,0.00748891]
[1633087842778,0.96805068,47324.0,47323.0,0.00748891]
[1633087843180,0.22349849,47324.0,47323.0,0.00748891]
[1633087843380,0.21805068,47324.0,47323.0,0.00748891]
[1633087843579,0.25105068,47324.0,47323.0,0.01340301]
[1633087843782,0.75105068,47324.0,47323.0,0.01340301]
[1633087843983,0.80499068,47324.0,47323.0,0.01340301]
[1633087844179,0.30499068,47324.0,47323.0,0.01340301]
[1633087844580,0.30499068,47324.0,47323.0,0.00840301]
[1633087844986,0.27199068,47324.0,47323.0,0.00840301]
[1633087845673,0.30499068,47324.0,47323.0,0.00840301]
[1633087846272,0.52819068,47324.0,47323.0,0.00840301]
[1633087846471,0.30499068,47324.0,47323.0,0.00840301]
[1633087846676,0.08826922,47324.0,47323.0,0.00840301]
[1633087846877,0.30785222,47324.0,47323.0,0.00840301]
[1633087847076,0.27485222,47324.0,47323.0,0.00840301]
[1633087847676,0.30995222,47324.0,47323.0,0.00840301]
[1633087848675,0.30979464,47324.0,47323.0,0.00840301]
[1633087848875,0.28224245,47324.0,47323.0,0.00248891]
[1633087849677,0.09438676,47324.0,47323.0,0.00248891]
[1633087849876,0.31396976,47324.0,47323.0,0.00248891]
[1633087850677,0.71396976,47324.0,47323.0,0.00248891]
[1633087850880,0.71396976,47324.0,47323.0,0.00648891]
[1633087851078,0.68096976,47324.0,47323.0,0.00648891]
[1633087851279,0.28096976,47324.0,47323.0,0.00648891]
[1633087851680,0.31296976,47324.0,47323.0,0.00648891]
[1633087852080,0.219583,47324.0,47323.0,0.00648891]
[1633087852484,0.29291086,47325.0,47323.0,0.00648891]
[1633087852683,0.29296786,47326.0,47323.0,0.00648891]
[1633087853284,6.306e-05,47325.0,47323.0,0.00648891]
[1633087853484,0.31708206,47325.0,47324.0,0.219583]
[1633087853685,0.31708206,47325.0,47324.0,0.3]
[1633087854084,0.31708206,47325.0,47323.0,0.00648891]
[1633087854284,0.32153302,47325.0,47323.0,0.00648891]
[1633087854550,0.39288867,47325.0,47324.0,0.00863863]
[1633087854685,0.32153302,47325.0,47324.0,0.00863863]
[1633087855290,0.32277429,47325.0,47324.0,0.00863863]
[1633087855491,0.32277429,47325.0,47316.0,0.0012]
[1633087855492,1.55,47323.0,47316.0,0.0012]
[1633087855687,1.55,47323.0,47312.0,0.0012]
[1633087855688,0.12679993,47316.0,47312.0,0.0012]
[1633087855892,2.04797396,47315.0,47312.0,0.0008]
[1633087856093,0.00126127,47308.0,47301.0,0.0016]
[1633087856291,0.44168819,47307.0,47301.0,0.0016]
[1633087856491,0.00125186,47305.0,47301.0,0.0016]
[1633087856690,0.238183,47304.0,47301.0,0.0016]
[1633087857562,0.238183,47304.0,47302.0,0.212639]
[1633087857687,0.253583,47304.0,47302.0,0.212639]
[1633087858089,0.25486498,47304.0,47302.0,0.0012]
[1633087858292,0.253583,47304.0,47302.0,0.0012]
[1633087859089,0.22086608,47304.0,47302.0,0.0012]
[1633087859291,2.04186608,47304.0,47302.0,0.0012]
[1633087859491,2.37506608,47304.0,47302.0,0.0012]
[1633087859697,2.26335233,47304.0,47303.0,0.00132001]
[1633087860089,0.94235233,47304.0,47303.0,0.00132001]
[1633087860293,0.83235233,47304.0,47303.0,0.00132001]
[1633087860695,0.83106925,47304.0,47303.0,0.00132001]
[1633087861095,0.72665375,47304.0,47303.0,0.00132001]
[1633087861293,0.88792394,47304.0,47301.0,2.001e-05]
[1633087861493,0.317223,47302.0,47301.0,2.001e-05]
[1633087861694,0.536806,47302.0,47301.0,2.001e-05]
[1633087861895,0.536806,47302.0,47301.0,0.00028578]
[1633087862299,0.536806,47302.0,47301.0,0.00527533]
[1633087863693,0.588406,47302.0,47301.0,0.00527533]
[1633087863895,0.9513396,47302.0,47301.0,0.00527533]
[1633087864295,1.00570292,47302.0,47301.0,0.00527533]
[1633087864493,0.9513396,47302.0,47301.0,0.00527533]
[1633087864692,1.0152867,47302.0,47301.0,0.00527533]
[1633087864899,0.588406,47302.0,47301.0,0.00527533]
[1633087865294,0.59548028,47302.0,47301.0,0.00527533]
[1633087865498,0.59548028,47302.0,47301.0,0.01141599]
[1633087866096,0.81997441,47302.0,47300.0,0.257362]
[1633087866295,0.22081533,47301.0,47300.0,0.257362]
[1633087866559,0.71658338,47301.0,47300.0,0.257362]
[1633087867096,0.31658338,47301.0,47300.0,0.257362]
[1633087867499,0.31535105,47301.0,47300.0,0.257362]
[1633087867698,0.34835105,47301.0,47300.0,0.4776973]
[1633087867899,0.00707428,47302.0,47300.0,0.47893278]
[1633087868098,0.00707428,47302.0,47301.0,0.43743633]
[1633087868499,0.00707428,47302.0,47301.0,0.21780633]
[1633087868704,0.00707428,47302.0,47300.0,0.29235161]
[1633087868898,0.00707428,47302.0,47300.0,0.26235161]
[1633087869698,0.04307428,47302.0,47300.0,0.26235161]
[1633087870298,0.04307428,47302.0,47300.0,0.4637867]
[1633087870501,0.04307428,47302.0,47301.0,0.00123769]
[1633087870700,0.04307428,47302.0,47300.0,0.46520121]
[1633087870902,0.36019728,47302.0,47300.0,0.26235161]
[1633087871100,0.317123,47302.0,47301.0,0.00369531]
[1633087871300,0.41080277,47302.0,47301.0,0.00369531]
[1633087871499,0.536753,47302.0,47301.0,0.00369531]
[1633087871702,0.571753,47302.0,47301.0,0.00369531]
[1633087872098,0.536753,47302.0,47301.0,0.00369531]
[1633087872499,0.61776566,47302.0,47301.0,0.00369531]
[1633087872704,0.536753,47302.0,47301.0,0.00369531]
[1633087872901,0.317123,47302.0,47301.0,0.00369531]
[1633087873709,0.317123,47302.0,47301.0,0.6425142]
[1633087873710,0.354123,47302.0,47301.0,0.6425142]
[1633087873903,0.354123,47302.0,47301.0,0.00369531]
[1633087875100,0.317123,47302.0,47301.0,0.00369531]
[1633087875501,0.317123,47302.0,47301.0,0.00289531]
[1633087875900,0.355123,47302.0,47301.0,0.00289531]
[1633087876401,0.36344104,47302.0,47300.0,0.56235161]
[1633087876600,0.36344104,47302.0,47301.0,0.0036953]
[1633087877204,0.32544104,47302.0,47301.0,0.08375378]
[1633087877405,0.32544104,47302.0,47301.0,0.50851143]
[1633087877406,0.00831804,47302.0,47301.0,0.50851143]
[1633087877809,0.04931804,47302.0,47301.0,0.22459864]
[1633087878404,0.04931804,47302.0,47300.0,0.26235161]
[1633087878608,0.00121512,47301.0,47300.0,0.26235161]
[1633087878806,0.47228404,47302.0,47300.0,0.26235161]
[1633087879203,0.43128404,47302.0,47300.0,0.26235161]
[1633087879804,0.04431804,47302.0,47300.0,0.36116289]
[1633087880005,0.04351804,47302.0,47301.0,0.519627]
[1633087880603,0.04351804,47302.0,47301.0,0.219627]
[1633087880805,0.04351804,47302.0,47301.0,0.3]
[1633087881003,0.04351804,47302.0,47300.0,0.25235161]
[1633087881206,0.219627,47301.0,47300.0,0.46376561]
[1633087881407,0.00751804,47302.0,47300.0,0.46376561]
[1633087881803,0.586,47301.0,47300.0,0.46376561]
[1633087882004,0.036,47301.0,47300.0,0.46376561]
[1633087882203,0.436,47301.0,47300.0,0.46376561]
[1633087882403,0.655627,47301.0,47300.0,0.46376561]
[1633087882805,1.776627,47301.0,47300.0,0.25235161]
[1633087883008,1.740627,47301.0,47300.0,0.25235161]
[1633087883204,2.11044345,47301.0,47300.0,0.0447]
[1633087883404,2.11044345,47301.0,47299.0,0.0012]
[1633087883405,2.29493918,47301.0,47299.0,0.0012]
[1633087883605,0.464,47298.0,47297.0,0.0001]
[1633087883804,1.57622708,47298.0,47297.0,0.0001]
[1633087885005,1.37622708,47298.0,47297.0,0.0001]
[1633087885205,1.62207304,47298.0,47297.0,0.0001]
[1633087885608,0.50107304,47298.0,47297.0,0.0001]
[1633087885804,1.53780504,47298.0,47297.0,0.0012876]
[1633087886006,1.53780504,47298.0,47296.0,0.00498997]
[1633087886007,0.41680504,47298.0,47296.0,0.00498997]
[1633087886207,0.422953,47297.0,47296.0,0.00498997]
[1633087886406,0.6965997,47297.0,47296.0,0.00498997]
[1633087886608,0.6965997,47297.0,47296.0,0.00505038]
[1633087887008,0.219627,47297.0,47296.0,0.00305038]
[1633087887208,0.05280504,47298.0,47296.0,0.00305038]
[1633087887209,0.01980504,47298.0,47296.0,0.00305038]
[1633087887408,0.00977252,47297.0,47296.0,0.00305038]
[1633087888008,1.13077252,47297.0,47296.0,0.00305038]
[1633087888214,1.35039952,47297.0,47296.0,0.00305038]
[1633087888409,1.41974592,47297.0,47296.0,0.00305038]
[1633087889008,0.29874592,47297.0,47296.0,0.00305038]
[1633087889414,1.41974592,47297.0,47296.0,0.00305038]
[1633087889610,1.014,47296.0,47295.0,0.05329938]
[1633087889812,0.6,47294.0,47290.0,0.0012]
[1633087890012,0.24638438,47292.0,47290.0,0.0012]
[1633087890212,0.164,47291.0,47290.0,0.0012]
[1633087890411,0.56366138,47292.0,47291.0,6.042e-05]
[1633087890680,0.78328838,47292.0,47291.0,6.042e-05]
[1633087891675,0.78328838,47292.0,47291.0,0.00505107]
[1633087891878,0.81828838,47292.0,47291.0,0.00505107]
[1633087892480,0.352277,47292.0,47291.0,0.00505107]
[1633087892676,0.36205635,47292.0,47291.0,0.00505107]
[1633087893275,0.32705635,47292.0,47291.0,0.00505107]
[1633087893480,0.51972161,47292.0,47291.0,0.00505107]
[1633087893877,0.55572161,47292.0,47291.0,0.00505107]
[1633087894279,0.04577935,47292.0,47291.0,0.00625145]
[1633087894479,0.04577935,47292.0,47291.0,0.22587845]
[1633087894680,0.05,47296.0,47291.0,0.22587845]
[1633087895081,0.2,47300.0,47291.0,0.22467807]
[1633087895281,0.2,47300.0,47291.0,0.50505107]
[1633087895282,1.121,47299.0,47291.0,0.50505107]
[1633087895490,0.12558557,47316.0,47307.0,0.3]
[1633087895689,0.12558557,47316.0,47313.0,1.10123145]
[1633087895885,1.5846,47327.0,47315.0,0.10235885]
[1633087896087,0.07743741,47329.0,47326.0,0.0012243]
[1633087896283,0.29660834,47328.0,47326.0,0.0012243]
[1633087896484,0.29660834,47328.0,47324.0,0.24583525]
[1633087896685,0.00127412,47327.0,47324.0,0.422617]
[1633087896882,0.00127412,47327.0,47324.0,0.42040991]
[1633087897481,0.29660834,47328.0,47324.0,0.42040991]
[1633087897482,0.317001,47326.0,47324.0,0.4266235]
[1633087897682,0.317001,47326.0,47324.0,0.42539689]
[1633087898281,0.00484395,47325.0,47324.0,0.42539689]
[1633087898887,0.00484395,47325.0,47324.0,0.6397071]
[1633087899082,0.75484395,47325.0,47324.0,0.6397071]
[1633087899282,0.75484395,47325.0,47324.0,0.42539689]
[1633087899684,0.22447095,47325.0,47324.0,0.36413134]
[1633087899883,0.25847095,47325.0,47324.0,0.36413134]
[1633087900083,0.25847095,47325.0,47324.0,0.36263134]
[1633087900285,0.03884395,47325.0,47324.0,0.36263134]
[1633087901083,0.25847095,47325.0,47324.0,0.36263134]
[1633087901289,0.22447095,47325.0,47324.0,0.36263134]
[1633087901685,0.00484395,47325.0,47324.0,0.07601013]
[1633087901886,0.03784395,47325.0,47324.0,0.07601013]
[1633087902487,0.25747095,47325.0,47324.0,0.07601013]
[1633087902685,0.25747095,47325.0,47324.0,0.28732013]
[1633087902890,0.28735213,47322.0,47313.0,0.211367]
[1633087903095,0.00123707,47316.0,47313.0,0.211367]
[1633087903291,0.0186,47315.0,47313.0,0.211367]
[1633087903687,0.09204577,47314.0,47313.0,0.211367]
[1633087903898,0.24308596,47314.0,47313.0,0.211367]
[1633087904088,0.02345896,47314.0,47313.0,0.211367]
[1633087905091,0.02345896,47314.0,47313.0,0.42522545]
[1633087905092,0.00485896,47314.0,47313.0,0.42522545]
[1633087905290,0.00485896,47314.0,47313.0,0.94612148]
[1633087905494,0.00485896,47314.0,47313.0,1.05977858]
[1633087905688,0.00485896,47314.0,47313.0,0.94612148]
[1633087905888,0.02985896,47314.0,47313.0,0.95912148]
[1633087906190,0.02985896,47314.0,47313.0,0.98912148]
[1633087906396,0.02936219,47314.0,47313.0,0.98912148]
[1633087906588,0.02936219,47314.0,47313.0,0.77526303]
[1633087907389,0.60438113,47322.0,47313.0,1.10045625]
[1633087907590,0.28735213,47322.0,47321.0,0.00122819]
[1633087907990,0.28764194,47322.0,47321.0,0.59427561]
[1633087908194,1.1079,47328.0,47321.0,0.59427561]
[1633087908390,0.316951,47333.0,47326.0,0.0937084]
[1633087908588,0.316951,47333.0,47329.0,0.33062838]
[1633087908789,0.316951,47333.0,47330.0,0.23829359]
[1633087909194,0.00010865,47331.0,47330.0,0.23829359]
[1633087909389,0.24410948,47333.0,47330.0,0.23829359]
[1633087909992,0.28510948,47333.0,47330.0,0.23829359]
[1633087911192,0.28510948,47333.0,47330.0,0.13829359]
[1633087911593,0.24410948,47333.0,47329.0,0.33062838]
[1633087911993,0.041,47333.0,47327.0,0.63514831]
[1633087912194,0.041,47333.0,47327.0,0.6339006]
[1633087912392,0.041,47333.0,47327.0,0.6289006]
[1633087912592,0.316971,47330.0,47327.0,0.6289006]
[1633087913193,0.041,47333.0,47327.0,0.9289006]
[1633087913393,0.18971765,47334.0,47327.0,0.9289006]
[1633087913793,0.316974,47330.0,47328.0,0.21042007]
[1633087913992,0.316974,47330.0,47327.0,0.6289006]
[1633087914196,0.316974,47330.0,47327.0,0.83749539]
[1633087914392,0.316974,47330.0,47327.0,0.83663297]
[1633087914593,0.316974,47330.0,47327.0,0.9289006]
[1633087914794,0.316974,47330.0,47328.0,0.01079774]
[1633087915394,6.663e-05,47329.0,47328.0,0.01079774]
[1633087915997,0.04206663,47329.0,47328.0,0.01079774]
[1633087916802,0.69206663,47329.0,47328.0,0.01079774]
[1633087917001,0.77491132,47329.0,47328.0,0.01079774]
[1633087917199,0.99453832,47329.0,47328.0,0.01079774]
[1633087917397,0.95253832,47329.0,47328.0,0.01079774]
[1633087917996,0.98653832,47329.0,47328.0,0.01079774]
[1633087918597,0.98653832,47329.0,47328.0,0.00879774]
[1633087918798,0.25369363,47329.0,47328.0,0.00879774]
[1633087918999,0.03406663,47329.0,47328.0,0.00879774]
[1633087919200,6.663e-05,47329.0,47328.0,0.00879774]
[1633087919599,0.10006663,47329.0,47328.0,0.00879774]
[1633087920001,0.13606663,47329.0,47327.0,0.422602]
[1633087920198,0.13606663,47329.0,47328.0,0.00979776]
[1633087920802,1.08406663,47329.0,47328.0,0.00979776]
[1633087921004,1.30369363,47329.0,47328.0,0.00979776]
[1633087921202,1.26769363,47329.0,47328.0,0.00979776]
[1633087922011,1.37729606,47329.0,47328.0,0.00979776]
[1633087923208,1.664,47328.0,47320.0,0.211305]
[1633087923412,0.00124422,47320.0,47318.0,0.0999]
[1633087923608,0.238227,47319.0,47318.0,0.0999]
[1633087924006,0.30011565,47319.0,47318.0,0.0999]
[1633087924610,0.27782107,47319.0,47318.0,0.0999]
[1633087925209,0.70102107,47319.0,47318.0,0.0999]
[1633087925406,0.70102107,47319.0,47309.0,0.211363]
[1633087925608,0.58585797,47311.0,47309.0,0.211363]
[1633087925807,0.0186,47310.0,47309.0,0.211363]
[1633087927414,0.26921783,47310.0,47307.0,0.21140588]
[1633087927610,0.06325512,47309.0,47306.0,1.1087]
[1633087928010,0.06325512,47309.0,47308.0,0.00025365]
[1633087928410,0.38920738,47309.0,47308.0,0.00025365]
[1633087928808,1.43920738,47309.0,47308.0,0.00025365]
[1633087929008,1.42243352,47309.0,47308.0,0.00025365]
[1633087929210,1.66548653,47309.0,47308.0,0.00025365]
[1633087929671,0.61548653,47309.0,47308.0,0.00025365]
[1633087930071,0.64948653,47309.0,47308.0,0.00025365]
[1633087930272,0.64662508,47309.0,47308.0,0.00025365]
[1633087930480,0.40842208,47309.0,47308.0,0.00025365]
[1633087930672,0.09124608,47309.0,47308.0,0.00025365]
[1633087931072,0.09569855,47309.0,47308.0,0.00025365]
[1633087931272,0.09569855,47309.0,47308.0,0.0069773]
[1633087931476,0.06169855,47309.0,47308.0,0.0069773]
[1633087931676,0.00445247,47309.0,47306.0,1.05679857]
[1633087931873,0.00445247,47309.0,47307.0,0.3]
[1633087932076,0.00445247,47309.0,47306.0,1.05679857]
[1633087932077,0.35756047,47309.0,47306.0,1.05679857]
[1633087932272,0.04045247,47309.0,47306.0,1.05550818]
[1633087932480,0.09196681,47309.0,47306.0,1.05550818]
[1633087932675,0.04045247,47309.0,47307.0,0.219603]
[1633087932874,0.11378133,47309.0,47307.0,0.219603]
[1633087933276,0.07778133,47309.0,47308.0,0.00122022]
[1633087933473,0.00445247,47309.0,47308.0,0.00122022]
[1633087933675,0.07871798,47309.0,47308.0,0.00122022]
[1633087933873,0.00445247,47309.0,47308.0,0.00122022]
[1633087934076,0.09292006,47309.0,47308.0,0.00122022]
[1633087934275,0.14686006,47309.0,47308.0,0.00122022]
[1633087934678,0.14686006,47309.0,47308.0,0.22082322]
[1633087936080,0.14786006,47309.0,47308.0,0.22082322]
[1633087936275,0.14786006,47309.0,47308.0,0.00122022]
[1633087936474,0.15065389,47309.0,47308.0,0.00122022]
[1633087936678,0.14620142,47309.0,47308.0,0.00122022]
[1633087936873,0.14620142,47309.0,47308.0,0.00491496]
[1633087937277,0.10920142,47309.0,47308.0,0.00491496]
[1633087937477,0.10920142,47309.0,47308.0,0.00521496]
[1633087938076,0.14620142,47309.0,47308.0,0.00521496]
[1633087939281,0.10920142,47309.0,47306.0,0.98091514]
[1633087939483,0.317121,47307.0,47306.0,0.98091514]
[1633087939684,0.371061,47307.0,47306.0,0.98091514]
[1633087939883,0.05394,47307.0,47306.0,0.98091514]
[1633087940085,0.09194,47307.0,47306.0,0.98091514]
[1633087940289,0.09194,47307.0,47306.0,1.20051814]
[1633087940685,0.15948994,47310.0,47307.0,0.219603]
[1633087941085,0.15448994,47310.0,47308.0,0.219603]
[1633087941283,0.23236908,47310.0,47308.0,0.219603]